bitfinex-derivatives/quotes_SOLF0:USTF0_20220108
["timestamp","ask_amount","ask_price","bid_price","bid_amount"]
[1641639584094,5.45684089,146.61,146.56,27.66479]
[1641639584894,5.45781694,146.58,146.54,65.7474]
[1641639585093,5.45781694,146.58,146.53,61.7578]
[1641639585693,0.95227808,146.58,146.53,27.66479]
[1641639586093,6.54829291,146.61,146.53,27.66479]
[1641639587496,6.54829291,146.61,146.53,33.01579]
[1641639587698,6.54829291,146.61,146.56,27.66479]
[1641639587899,27.66479,146.62,146.56,36.38179]
[1641639588100,6.82011935,146.66,146.56,36.38179]
[1641639588900,10.82011935,146.66,146.56,36.38179]
[1641639589301,4.0,146.65,146.56,36.38179]
[1641639591302,5.45625663,146.63,146.56,36.38179]
[1641639592404,5.45625663,146.63,146.57,57.66102079]
[1641639594104,5.45625663,146.63,146.6,4.0]
[1641639594306,5.45625663,146.63,146.6,7.074]
[1641639595310,5.45625663,146.63,146.6,64.73502079]
[1641639595810,5.45625663,146.63,146.6,92.39981079]
[1641639598614,0.83453889,146.63,146.6,96.39981079]
[1641639598814,16.60538841,146.67,146.6,96.39981079]
[1641639599013,16.60538841,146.67,146.6,38.73879]
[1641639599617,16.60538841,146.67,146.6,11.074]
[1641639599816,6.54597233,146.66,146.64,38.45002511]
[1641639600820,6.54597233,146.66,146.65,14.42732999]
[1641639601518,6.54597233,146.66,146.63,8.512]
[1641639601722,6.54597233,146.66,146.64,38.45002511]
[1641639602122,10.06,146.67,146.64,38.45002511]
[1641639603621,10.06,146.67,146.63,66.17302079]
[1641639603820,2.58526947,146.67,146.63,66.17302079]
[1641639604021,8.46461763,146.73,146.66,27.66479]
[1641639604320,5.45339405,146.7,146.66,27.66479]
[1641639606623,5.45339405,146.7,146.69,38.50458876]
[1641639606826,12.52039405,146.7,146.69,38.50458876]
[1641639607126,12.52039405,146.7,146.69,31.50458876]
[1641639607525,7.067,146.7,146.69,26.05012805]
[1641639607725,7.067,146.7,146.66,12.75981791]
[1641639608326,17.61140651,146.7,146.66,12.75981791]
[1641639608526,17.61140651,146.7,146.66,7.75981791]
[1641639608927,4.0,146.69,146.66,3.75981791]
[1641639609628,4.0,146.69,146.61,57.66102079]
[1641639610129,20.42966581,146.7,146.61,57.66102079]
[1641639610528,20.42966581,146.7,146.61,65.47702079]
[1641639610728,13.36266581,146.7,146.61,65.47702079]
[1641639611230,13.36266581,146.7,146.69,14.45571998]
[1641639613936,6.54440651,146.7,146.69,14.45571998]
[1641639614537,6.54440651,146.7,146.65,8.315]
[1641639615440,6.54440651,146.7,146.66,57.66102079]
[1641639615640,0.52938439,146.7,146.66,57.66102079]
[1641639615841,31.66479,146.71,146.66,57.66102079]
[1641639616440,27.66479,146.71,146.66,57.66102079]
[1641639616941,27.66479,146.71,146.65,57.66102079]
[1641639618644,27.66479,146.71,146.66,57.66102079]
[1641639620347,27.66479,146.71,146.66,59.7259576]
[1641639621245,6.54397438,146.7,146.67,57.66102079]
[1641639624249,27.66479,146.68,146.67,22.09558473]
[1641639624446,38.48421171,146.68,146.62,89.54268358]
[1641639624646,38.48421171,146.68,146.62,76.72434554]
[1641639624647,4.0,146.65,146.62,76.72434554]
[1641639624846,9.709,146.65,146.62,68.72434554]
[1641639625046,4.0,146.64,146.62,42.44434554]
[1641639625348,5.704,146.64,146.58,143.12862896]
[1641639625546,5.704,146.64,146.55,65.7191]
[1641639626146,27.66479,146.62,146.55,65.7191]
[1641639626347,35.29879,146.62,146.55,65.7191]
[1641639626547,35.29879,146.62,146.55,56.3591]
[1641639627950,35.29879,146.62,146.57,38.60158658]
[1641639628952,35.29879,146.62,146.61,38.60158658]
[1641639629152,35.29879,146.62,146.53,90.63769]
[1641639629153,39.29879,146.62,146.53,90.63769]
[1641639629352,4.0,146.59,146.48,120.01144224]
[1641639629553,7.174,146.59,146.48,120.01144224]
[1641639629752,11.174,146.59,146.47,120.01144224]
[1641639629952,4.0,146.56,146.47,120.01144224]
[1641639630152,27.66479,146.54,146.47,120.01144224]
[1641639630352,34.21627715,146.54,146.47,108.01144224]
[1641639630752,34.21627715,146.54,146.44,27.66479]
[1641639630953,34.21627715,146.54,146.44,15.90479]
[1641639631355,4.0,146.53,146.44,15.90479]
[1641639631555,1.706,146.52,146.42,94.96039]
[1641639632153,27.66479,146.51,146.42,94.96039]
[1641639633353,5.46080275,146.5,146.42,94.96039]
[1641639633555,13.23580275,146.5,146.42,94.96039]
[1641639635556,5.46080275,146.5,146.42,98.96039]
[1641639636256,5.46080275,146.5,146.43,4.0]
[1641639636458,5.46080275,146.5,146.45,4.0]
[1641639636656,5.46080275,146.5,146.47,4.0]
[1641639637657,44.35627715,146.54,146.47,4.0]
[1641639637658,16.69148715,146.54,146.47,4.0]
[1641639638260,5.45987602,146.53,146.45,27.66479]
[1641639639159,5.45987602,146.53,146.45,31.66479]
[1641639639359,5.45987602,146.53,146.45,27.66479]
[1641639639759,5.45987602,146.53,146.45,31.66479]
[1641639640360,5.45987602,146.53,146.46,4.0]
[1641639640764,5.45987602,146.53,146.45,27.66479]
[1641639640962,5.46075652,146.5,146.45,27.66479]
[1641639642266,33.12554652,146.5,146.43,8.69458311]
[1641639642465,40.86354652,146.5,146.43,8.69458311]
[1641639643368,40.86354652,146.5,146.42,8.69458311]
[1641639643866,33.12554652,146.5,146.42,8.69458311]
[1641639644069,33.12554652,146.5,146.41,67.2091]
[1641639644267,33.12554652,146.5,146.41,94.87389]
[1641639644666,33.12554652,146.5,146.41,90.87389]
[1641639644866,5.46179162,146.48,146.41,90.87389]
[1641639645069,5.46179162,146.48,146.42,9.43439727]
[1641639646869,16.69148715,146.54,146.44,4.0]
[1641639647070,16.69148715,146.54,146.45,4.0]
[1641639647270,16.69148715,146.54,146.46,4.0]
[1641639647471,16.69148715,146.54,146.47,4.0]
[1641639648271,16.69148715,146.54,146.5,27.66479]
[1641639649074,10.14,146.54,146.5,27.66479]
[1641639649272,11.85957904,146.58,146.5,27.66479]
[1641639649474,6.55110008,146.55,146.47,9.43539705]
[1641639649774,5.46100123,146.5,146.47,9.43539705]
[1641639649973,5.46100123,146.5,146.44,57.62041555]
[1641639649974,5.46202413,146.47,146.44,57.62041555]
[1641639650376,13.39802413,146.47,146.44,57.62041555]
[1641639651176,13.39802413,146.47,146.42,10.8077991]
[1641639652276,5.4631199,146.44,146.42,10.8077991]
[1641639652477,5.46349285,146.43,146.42,10.8077991]
[1641639653078,1.82504267,146.43,146.41,10.8077991]
[1641639653479,6.55412781,146.48,146.41,10.8077991]
[1641639653677,6.55412781,146.48,146.4,27.66479]
[1641639655479,6.55412781,146.48,146.4,85.28520555]
[1641639655480,17.38262998,146.48,146.4,85.28520555]
[1641639655880,17.38262998,146.48,146.4,57.62041555]
[1641639656480,27.66479,146.45,146.4,57.62041555]
[1641639656681,27.66479,146.45,146.38,38.4725891]
[1641639656881,27.66479,146.45,146.33,116.74383732]
[1641639657081,6.56184209,146.31,146.28,42.02834094]
[1641639657279,17.65184209,146.31,146.23,143.28327707]
[1641639657480,13.65184209,146.31,146.23,49.96327707]
[1641639657680,13.65184209,146.31,146.17,122.83161901]
[1641639657880,13.65184209,146.31,146.22,4.0]
[1641639657881,1.709,146.3,146.22,4.0]
[1641639658080,13.65184209,146.31,146.22,4.0]
[1641639658480,55.32958,146.23,146.22,4.0]
[1641639658681,63.77958,146.23,146.22,4.0]
[1641639659382,44.31799343,146.23,146.22,4.0]
[1641639659982,44.31799343,146.23,146.19,14.36997632]
[1641639660182,49.78890037,146.23,146.19,14.36997632]
[1641639660482,49.78890037,146.23,146.13,67.4655]
[1641639660483,27.66479,146.2,146.13,65.7565]
[1641639660681,35.36479,146.2,146.13,65.7565]
[1641639660881,35.36479,146.2,146.12,14.36997632]
[1641639661082,40.8371134,146.2,146.12,14.36997632]
[1641639661284,40.8371134,146.2,146.1,94.67729]
[1641639661583,6.84275352,146.18,146.1,67.0125]
[1641639662382,27.66479,146.11,146.1,67.0125]
[1641639662583,35.76579,146.11,146.05,4.0]
[1641639664085,35.76579,146.11,146.02,93.24119]
[1641639664286,19.4342641,146.1,146.02,93.24119]
[1641639665385,23.4342641,146.1,146.02,93.24119]
[1641639665587,26.28053117,146.1,146.02,65.5764]
[1641639665787,4.0,146.06,146.02,55.1364]
[1641639666187,7.894,146.08,146.01,62.5992]
[1641639666188,7.894,146.08,146.01,57.9192]
[1641639666390,27.66479,146.05,146.01,57.9192]
[1641639666588,27.66479,146.05,145.99,64.0462]
[1641639666790,34.40137794,146.05,145.94,34.51105707]
[1641639666989,34.40137794,146.05,145.95,1.712]
[1641639667192,94.55929681,146.0,145.95,1.712]
[1641639667389,94.55929681,146.0,145.87,65.5504]
[1641639667991,56.73449032,145.99,145.88,1.713]
[1641639668394,56.73449032,145.99,145.92,34.51035407]
[1641639668593,56.73449032,145.99,145.93,1.712]
[1641639668792,52.8462227,145.99,145.93,1.712]
[1641639668995,14.17749137,146.0,145.93,1.712]
[1641639669694,37.80664364,145.94,145.93,1.712]
[1641639669994,37.80664364,145.94,145.91,1.713]
[1641639670594,6.73658794,145.94,145.91,1.713]
[1641639670994,0.73658794,145.94,145.91,1.713]
[1641639671596,37.63329896,145.95,145.91,1.713]
[1641639671794,37.63329896,145.95,145.9,27.66479]
[1641639672194,37.63329896,145.95,145.89,1.713]
[1641639672595,14.11453654,145.91,145.89,1.713]
[1641639673194,14.11453654,145.91,145.87,1.713]
[1641639673595,19.4342641,145.97,145.87,1.713]
[1641639673596,14.11453654,145.93,145.87,1.713]
[1641639674095,42.1820996,145.97,145.89,6.84673582]
[1641639674297,42.1820996,145.97,145.9,1.713]
[1641639674499,27.66479,145.98,145.9,29.37779]
[1641639674696,27.66479,146.02,145.9,34.51082272]
[1641639674900,27.66479,146.02,145.91,1.712]
[1641639675499,4.0,146.01,145.91,1.712]
[1641639675698,13.9164098,146.01,145.87,1.712]
[1641639676100,10.84978423,145.99,145.87,1.712]
[1641639676299,6.84978423,145.99,145.87,1.712]
[1641639676500,27.66479,145.98,145.87,1.712]
[1641639678402,15.66479,146.02,145.92,27.66479]
[1641639678604,8.76479,146.04,145.93,1.712]
[1641639680204,8.76479,146.04,145.96,4.70610014]
[1641639680403,18.70281308,146.05,145.96,32.37089014]
[1641639680804,18.70281308,146.05,145.98,4.70610014]
[1641639681404,22.70281308,146.05,145.98,4.70610014]
[1641639681805,4.0,146.04,145.94,67.30040014]
[1641639682406,46.36760308,146.05,145.94,67.30040014]
[1641639682606,10.84837693,146.02,145.94,67.30040014]
[1641639683507,10.84837693,146.02,145.94,62.5943]
[1641639684108,4.0,146.01,145.94,62.5943]
[1641639684307,8.748,146.01,146.0,4.70610014]
[1641639684511,40.41279,146.01,145.94,61.5943]
[1641639684706,4.0,145.99,145.94,61.5943]
[1641639684907,36.41279,146.01,145.94,61.5943]
[1641639685107,4.0,145.99,145.94,61.5943]
[1641639685308,4.0,145.99,145.95,54.3237481]
[1641639685609,6.84837693,146.02,146.01,5.4617386]
[1641639686209,6.84837693,146.02,146.01,0.0017386]
[1641639686509,34.51316693,146.02,146.01,0.0017386]
[1641639689813,34.51316693,146.02,146.01,38.45124578]
[1641639690013,44.87316693,146.02,146.01,38.45124578]
[1641639690414,17.20837693,146.02,146.01,38.45124578]
[1641639691116,23.78312494,146.02,146.01,38.45124578]
[1641639691415,23.78312494,146.02,146.01,0.0017386]
[1641639692416,23.78312494,146.02,146.01,38.69850335]
[1641639692618,51.44791494,146.02,146.01,38.69850335]
[1641639693821,44.87316693,146.02,146.01,38.69850335]
[1641639694622,44.87316693,146.02,146.01,0.0017386]
[1641639695624,51.87316693,146.02,146.01,0.0017386]
[1641639695823,6.57385996,146.0,145.93,55.44448313]
[1641639696222,1.712,146.01,145.93,55.44448313]
[1641639696424,53.05327879,146.02,145.94,38.73255327]
[1641639696724,27.66479,145.99,145.94,38.73255327]
[1641639697525,34.49679,145.99,145.94,38.73255327]
[1641639698125,34.49679,145.99,145.95,38.73255327]
[1641639698525,6.832,145.99,145.95,38.73255327]
[1641639698725,51.87316693,146.02,145.95,38.73255327]
[1641639699126,51.87316693,146.02,145.96,38.73255327]
[1641639700327,51.87316693,146.02,145.95,38.73255327]
[1641639700527,27.66479,145.99,145.95,38.73255327]
[1641639701330,33.02779,145.99,145.95,38.73255327]
[1641639701530,6.85166153,145.96,145.95,38.73255327]
[1641639701732,14.82666153,145.96,145.93,38.73255327]
[1641639702831,7.975,145.96,145.89,15.17320173]
[1641639703032,30.86530276,145.9,145.79,128.73986759]
[1641639703231,24.0,145.8,145.79,65.63986759]
[1641639703430,24.0,145.8,145.74,142.46907985]
[1641639703633,24.0,145.8,145.74,88.92907985]
[1641639703831,1.714,145.79,145.74,23.51297803]
[1641639704130,1.714,145.79,145.68,142.46907985]
[1641639704330,1.714,145.79,145.68,69.34651512]
[1641639704530,11.71358159,145.76,145.68,4.72651512]
[1641639704730,3.99097827,145.67,145.62,125.18658542]
[1641639704933,3.99097827,145.67,145.62,69.07758542]
[1641639705130,27.66479,145.62,145.35,22.94479]
[1641639705331,4.0,145.44,145.33,155.8829]
[1641639705530,6.387,145.48,145.33,100.4029]
[1641639705730,7.115,145.51,145.33,86.0629]
[1641639705930,4.0,145.5,145.34,1.719]
[1641639706132,4.0,145.47,145.34,1.719]
[1641639706330,6.87710611,145.41,145.34,1.719]
[1641639706531,27.66479,145.39,145.32,27.66479]
[1641639706733,27.66479,145.41,145.32,27.66479]
[1641639707031,4.0,145.45,145.33,1.719]
[1641639707231,6.8766332,145.42,145.33,1.719]
[1641639707431,6.87450589,145.46,145.3,8.59350589]
[1641639707632,14.91019585,145.4,145.3,1.719]
[1641639708132,9.585e-05,145.4,145.33,6.87285223]
[1641639708330,10.8747422,145.46,145.34,1.719]
[1641639708532,27.66479,145.41,145.33,6.87285223]
[1641639708831,27.66479,145.41,145.34,1.719]
[1641639709031,27.66479,145.43,145.34,1.719]
[1641639709032,27.66479,145.43,145.34,8.59137991]
[1641639709233,27.66479,145.43,145.34,1.719]
[1641639709531,27.66479,145.43,145.34,6.87237991]
[1641639709731,27.66479,145.43,145.35,1.719]
[1641639710533,27.66479,145.43,145.36,27.66479]
[1641639710731,27.66479,145.43,145.37,1.719]
[1641639710933,6.87214377,145.51,145.37,1.719]
[1641639712336,7.0338315,145.5,145.37,1.719]
[1641639712535,27.66479,145.49,145.39,27.66479]
[1641639712834,27.66479,145.49,145.4,1.718]
[1641639713234,7.0338315,145.48,145.4,1.718]
[1641639713436,7.0338315,145.48,145.37,1.718]
[1641639714236,6.87403334,145.47,145.37,1.718]
[1641639714637,27.66479,145.45,145.37,1.718]
[1641639715236,27.66479,145.45,145.36,29.38379]
[1641639715937,185.99078419,145.4,145.36,29.38379]
[1641639716136,185.99078419,145.4,145.31,1.719]
[1641639716736,185.99078419,145.4,145.32,27.66479]
[1641639716937,185.99078419,145.4,145.33,21.719]
[1641639717137,185.99078419,145.4,145.34,6.87261606]
[1641639717338,185.99078419,145.4,145.36,20.0]
[1641639717638,7.0338315,145.43,145.38,20.0]
[1641639717838,7.0338315,145.44,145.39,1.719]
[1641639718037,7.0338315,145.44,145.35,1.719]
[1641639718240,7.0338315,145.44,145.35,21.719]
[1641639718538,7.0338315,145.44,145.36,8.0]
[1641639718739,116.07812863,145.42,145.4,3.27006355]
[1641639718939,116.07812863,145.42,145.41,1.719]
[1641639719138,2.863e-05,145.42,145.41,1.719]
[1641639719340,7.0338315,145.43,145.41,5.966]
[1641639719541,162.21924773,145.48,145.41,7.685]
[1641639719941,139.29375435,145.48,145.41,7.685]
[1641639720141,13.16015456,145.37,145.36,14.963]
[1641639720341,13.16015456,145.37,145.32,1.719]
[1641639720542,4.0,145.33,145.17,1.72]
[1641639720745,55.32958,145.23,145.17,1.72]
[1641639721042,4.0,145.22,145.01,1.721]
[1641639721244,5.50969073,145.2,145.01,1.721]
[1641639721443,5.50969073,145.2,144.92,77.5704]
[1641639721444,4.0,145.13,144.95,1.722]
[1641639721643,4.0,145.13,144.92,67.2104]
[1641639721644,2.91379161,145.19,144.99,20.0]
[1641639721844,2.91379161,145.19,145.0,1.723]
[1641639722044,6.88895012,145.15,144.98,6.88895012]
[1641639722246,4.0,145.13,144.99,1.723]
[1641639722444,6.61629551,145.1,144.98,1.723]
[1641639722645,27.66479,145.05,144.94,27.66479]
[1641639722844,27.66479,145.05,144.91,26.89251129]
[1641639723044,27.66479,145.05,144.93,21.724]
[1641639723247,27.66479,145.05,144.95,6.89037415]
[1641639723544,6.89108638,145.1,144.96,1.724]
[1641639723745,5.5084909,145.24,145.03,4.0]
[1641639723945,1.723,145.21,145.04,1.722]
[1641639724144,7.669,145.23,145.02,1.722]
[1641639724344,11.669,145.23,145.02,4.0]
[1641639724544,6.70360275,145.2,144.98,5.722]
[1641639724744,27.66479,145.07,144.98,1.722]
[1641639724944,27.66479,145.07,144.99,6.89037415]
[1641639725145,27.66479,145.07,144.91,4.0]
[1641639725146,27.66479,145.07,145.0,1.723]
[1641639725346,27.66479,145.07,144.95,1.723]
[1641639725750,27.66479,145.07,145.0,6.89013677]
[1641639725949,27.66479,145.07,144.99,6.89061154]
[1641639726148,1.724,145.13,145.02,6.88895012]
[1641639726348,1.723,145.17,145.03,8.61171284]
[1641639726548,8.61118742,145.18,145.03,8.61171284]
[1641639726750,27.66479,145.11,145.03,8.61171284]
[1641639727048,27.66479,145.11,145.03,1.723]
[1641639727258,27.66479,145.11,145.0,1.723]
[1641639727448,36.28006376,145.11,144.95,8.61527376]
[1641639727649,1.19469626,145.1,144.95,8.61527376]
[1641639727950,1.723,145.1,144.95,1.723]
[1641639728150,1.723,145.13,144.99,4.0]
[1641639728351,1.723,145.13,145.0,1.723]
[1641639728550,1.723,145.13,144.95,4.0]
[1641639728751,27.66479,145.06,145.02,4.0]
[1641639728950,27.66479,145.06,145.03,1.723]
[1641639729152,27.66479,145.06,145.04,4.0]
[1641639729352,5.90211986,145.2,145.04,4.0]
[1641639729550,30.42,145.27,145.01,6.839]
[1641639729551,1.722,145.19,145.05,1.722]
[1641639729751,0.95527384,145.19,145.05,4.0]
[1641639729951,0.95527384,145.19,145.06,1.722]
[1641639730151,1.722,145.18,145.06,1.722]
[1641639730552,1.722,145.2,145.1,6.88776389]
[1641639730753,1.722,145.2,145.1,34.55255389]
[1641639730754,0.95527384,145.17,145.1,34.55255389]
[1641639730954,0.95527384,145.17,145.1,27.66479]
[1641639731152,0.95527384,145.18,145.08,36.27550284]
[1641639731352,2.67727384,145.18,145.08,34.55350284]
[1641639731553,5.51252024,145.13,145.04,6.89084895]
[1641639731754,8.18789414,145.18,145.04,6.89084895]
[1641639731952,8.18789414,145.18,145.05,1.722]
[1641639732152,7.2326203,145.18,145.05,6.89037415]
[1641639732353,7.2326203,145.18,145.07,6.88942473]
[1641639732554,0.95520493,145.17,145.07,6.88942473]
[1641639732753,27.66479,145.14,145.07,6.88942473]
[1641639733355,0.34199493,145.19,145.13,4.0]
[1641639733556,5.50885204,145.23,145.12,10.88705234]
[1641639733755,1.722,145.22,145.12,6.88705234]
[1641639733954,5.50843697,145.24,145.12,6.88705234]
[1641639734155,1.722,145.23,145.12,6.88705234]
[1641639734357,1.722,145.23,145.14,10.88610384]
[1641639734557,1.722,145.27,145.15,1.721]
[1641639734759,27.66479,145.19,145.11,27.66479]
[1641639735159,27.66479,145.19,145.09,34.55302833]
[1641639735761,0.78265332,145.18,145.09,34.55302833]
[1641639737162,2.50465332,145.18,145.09,6.88823833]
[1641639737362,2.50465332,145.18,145.09,10.88823833]
[1641639737563,2.50465332,145.18,145.09,6.88823833]
[1641639738166,0.78265332,145.17,145.11,4.0]
[1641639738364,0.78265332,145.17,145.1,4.0]
[1641639738565,26.11223332,145.19,145.13,4.0]
[1641639738766,27.66479,145.23,145.13,27.66479]
[1641639738965,1.722,145.22,145.13,27.66479]
[1641639739265,1.722,145.22,145.09,1.722]
[1641639739466,6.89084895,145.2,145.08,5.722]
[1641639739668,1.722,145.19,145.08,1.722]
[1641639739866,2.50500266,145.21,145.08,1.722]
[1641639740067,2.50500266,145.21,145.13,4.0]
[1641639740268,0.78300266,145.21,145.13,4.0]
[1641639740468,0.78300266,145.2,145.15,4.0]
[1641639740970,27.66479,145.19,145.15,4.0]
[1641639741370,27.66479,145.19,145.12,1.722]
[1641639741570,0.78300266,145.18,145.12,1.722]
[1641639741971,0.78300266,145.18,145.16,4.0]
[1641639742374,0.78300266,145.22,145.16,4.0]
[1641639742572,7.85489056,145.47,145.21,28.0]
[1641639742771,27.66479,145.43,145.34,27.66479]
[1641639742971,7.85489056,145.47,145.34,34.49879]
[1641639743171,13.93002108,145.5,145.35,1.719]
[1641639743372,13.93002108,145.5,145.43,4.0]
[1641639743572,13.93002108,145.5,145.48,6.87167153]
[1641639743772,10.44,145.61,145.48,5.709]
[1641639743973,10.44,145.61,145.48,12.58043544]
[1641639744372,20.0,145.59,145.48,5.709]
[1641639744572,192.59856666,145.6,145.48,5.709]
[1641639744773,27.66479,145.5,145.48,5.709]
[1641639744972,27.66479,145.5,145.4,39.27786412]
[1641639745171,20.0,145.43,145.34,36.5309719]
[1641639745370,20.0,145.43,145.25,92.8625029]
[1641639745371,5.88278716,145.31,145.25,62.7025029]
[1641639745571,20.0,145.26,145.2,69.63705912]
[1641639745771,20.0,145.25,144.95,4.0]
[1641639745972,20.0,145.15,144.97,1.722]
[1641639746171,6.015,145.15,145.08,4.0]
[1641639746371,6.015,145.15,145.09,6.88847558]
[1641639747072,6.015,145.15,145.14,4.0]
[1641639747272,7.755,145.26,145.14,10.88562969]
[1641639747473,20.0,145.28,145.14,6.88562969]
[1641639747672,6.88847558,145.26,145.14,4.0]
[1641639747873,1.721,145.25,145.11,4.0]
[1641639748074,1.721,145.25,145.14,4.0]
[1641639748274,109.15632327,145.29,145.15,4.0]
[1641639748474,1.721,145.28,145.17,4.0]
[1641639748674,1.721,145.28,145.2,4.0]
[1641639748876,27.66479,145.25,145.18,1.721]
[1641639749076,25.50659572,145.25,145.17,10.88491859]
[1641639749278,25.50659572,145.25,145.19,4.0]
[1641639749477,17.68083696,145.25,145.19,4.0]
[1641639749679,17.68083696,145.25,145.18,4.0]
[1641639750080,17.68083696,145.25,145.2,4.0]
[1641639750279,17.68083696,145.25,145.23,4.0]
[1641639750481,17.68083696,145.25,145.18,4.0]
[1641639750679,17.68083696,145.25,145.23,4.0]
[1641639750878,27.66479,145.27,145.24,4.0]
[1641639751079,27.66479,145.27,145.25,4.0]
[1641639751279,1.721,145.35,145.26,8.0]
[1641639751480,1.72,145.4,145.34,4.0]
[1641639752080,1.719,145.41,145.34,4.0]
[1641639752683,1.719,145.41,145.32,4.0]
[1641639752886,27.66479,145.4,145.32,4.0]
[1641639753082,1.719,145.39,145.25,3.06882239]
[1641639753283,27.66479,145.4,145.35,3.06882239]
[1641639753683,81.96890467,145.2,145.18,65.9134]
[1641639753884,4.67e-06,145.2,145.19,1.721]
[1641639754285,4.67e-06,145.2,145.19,6.88136526]
[1641639754589,4.0,145.36,145.19,6.88136526]
[1641639754590,87.7227107,145.39,145.19,8.60236526]
[1641639754885,27.66479,145.35,145.3,6.87805214]
[1641639755186,27.66479,145.4,145.3,5.804]
[1641639755686,4.0,145.39,145.3,5.804]
[1641639756083,27.66479,145.4,145.3,5.804]
[1641639756785,27.66479,145.37,145.3,12.68228868]
[1641639756985,27.66479,145.37,145.31,1.72]
[1641639757387,10.12,145.5,145.31,1.72]
[1641639757388,80.30744119,145.49,145.33,6.87686965]
[1641639757587,77.43057154,145.49,145.36,6.87521485]
[1641639757787,10.59847154,145.49,145.37,1.719]
[1641639758189,4.0,145.49,145.4,6.87356085]
[1641639758487,4.0,145.49,145.41,6.87285223]
[1641639758687,4.0,145.49,145.4,8.054]
[1641639758889,27.66479,145.47,145.4,8.054]
[1641639760791,27.66479,145.47,145.42,6.87261606]
[1641639761392,5.718,145.53,145.42,6.87261606]
[1641639761592,1.718,145.53,145.42,6.87261606]
[1641639761794,1.718,145.53,145.43,3.52753206]
[1641639762397,19.54208297,145.52,145.43,3.52753206]
[1641639762595,4.0,145.5,145.43,3.52753206]
[1641639762795,27.66479,145.46,145.43,3.52753206]
[1641639763094,27.66479,145.46,145.39,3.52753206]
[1641639764696,27.66479,145.46,145.41,6.87308842]
[1641639764900,27.66479,145.46,145.41,12.20308842]
[1641639765398,27.66479,145.48,145.44,6.87167153]
[1641639765598,27.66479,145.48,145.44,12.96467153]
[1641639765999,1.718,145.57,145.44,12.96467153]
[1641639766200,7.21316887,145.59,145.47,6.87001924]
[1641639766399,4.0,145.58,145.48,1.717]
[1641639766600,1.717,145.57,145.47,14.46101924]
[1641639766803,31.66479,145.56,145.48,1.717]
[1641639767000,4.0,145.55,145.47,14.46101924]
[1641639767200,4.0,145.55,145.48,3.52753206]
[1641639767402,27.66479,145.56,145.48,3.52753206]
[1641639768803,27.66479,145.56,145.48,5.24453206]
[1641639769003,19.536041,145.55,145.48,5.24453206]
[1641639769203,19.536041,145.55,145.48,3.52753206]
[1641639769403,4.0,145.54,145.48,3.52753206]
[1641639769603,4.0,145.51,145.48,3.52753206]
[1641639769804,4.0,145.52,145.49,3.52753206]
[1641639770006,1.718,145.54,145.49,3.52753206]
[1641639770503,4.0,145.53,145.49,3.52753206]
[1641639770905,4.0,145.53,145.48,4.54295084]
[1641639771102,4.0,145.53,145.46,38.39096439]
[1641639771304,33.16083432,145.56,145.45,1.717]
[1641639771305,4.0,145.54,145.45,1.717]
[1641639772006,33.16083432,145.56,145.45,1.717]
[1641639772203,27.66479,145.56,145.45,7.533]
[1641639772404,5.718,145.62,145.49,6.86931135]
[1641639772606,4.0,145.62,145.5,1.717]
[1641639772903,7.21141754,145.63,145.5,29.38179]
[1641639772904,27.66479,145.61,145.5,29.38179]
[1641639773303,47.19570531,145.61,145.5,29.38179]
[1641639773503,1.717,145.6,145.5,27.66479]
[1641639773703,1.717,145.6,145.5,66.05575439]
[1641639773904,4.0,145.56,145.5,66.05575439]
[1641639774105,26.74274034,145.6,145.5,38.39096439]
[1641639774505,4.0,145.56,145.5,38.39096439]
[1641639774905,4.0,145.53,145.47,67.77275439]
[1641639775104,8.031,145.53,145.47,66.05575439]
[1641639775505,8.031,145.53,145.47,38.39096439]